bitfinex-derivatives/quotes_SOLF0:USTF0_20241227
["timestamp","ask_amount","ask_price","bid_price","bid_amount"]
[1735292977753,4.06,193.84,193.77,4.58989039]
[1735292977954,4.06,193.84,193.78,4.59052984]
[1735292978159,2.5826,193.82,193.71,3.2926]
[1735292978358,2.5826,193.82,193.72,4.59061788]
[1735292978558,2.5826,193.82,193.73,4.59061788]
[1735292978758,2.5826,193.82,193.74,4.59061788]
[1735292978959,2.5826,193.82,193.75,4.59061788]
[1735292979155,2.5826,193.82,193.76,4.59061788]
[1735292979353,2.5826,193.82,193.77,4.59061788]
[1735292979556,2.5826,193.82,193.78,4.59061788]
[1735292979857,2.5826,193.82,193.75,2.5835]
[1735292980054,2.5826,193.82,193.76,4.59044383]
[1735292980253,2.5826,193.82,193.77,4.59044383]
[1735292980556,2.5826,193.82,193.75,2.5835]
[1735292980761,2.5826,193.82,193.76,4.59097448]
[1735292980961,2.5826,193.82,193.77,4.59097448]
[1735292981158,2.5826,193.82,193.75,2.5835]
[1735292981467,2.5826,193.82,193.76,4.59121949]
[1735292981760,2.5826,193.82,193.77,4.59121949]
[1735292981960,2.5826,193.82,193.75,2.5835]
[1735292982263,2.5826,193.82,193.76,4.59216805]
[1735292982461,2.5826,193.82,193.77,4.59216805]
[1735292982669,2.5826,193.82,193.76,2.5834]
[1735292982870,2.5826,193.82,193.77,4.59100691]
[1735292983066,2.5826,193.82,193.76,2.5834]
[1735292983468,2.5826,193.82,193.77,4.59033084]
[1735292983668,2.5826,193.82,193.76,2.5834]
[1735292983871,2.5826,193.82,193.77,4.5896473]
[1735292984073,2.5826,193.82,193.76,2.5834]
[1735292984371,2.5826,193.82,193.77,4.59008257]
[1735292984571,2.5826,193.82,193.75,2.5835]
[1735292984774,2.5826,193.82,193.76,4.59397756]
[1735292985071,2.5826,193.82,193.77,4.59397756]
[1735292985272,2.5826,193.82,193.75,2.5835]
[1735292985572,2.5826,193.82,193.76,4.59209531]
[1735292985767,2.5826,193.82,193.77,4.59209531]
[1735292985962,2.5826,193.82,193.75,2.5835]
[1735292986167,2.5826,193.82,193.76,4.59315425]
[1735292986363,2.5826,193.82,193.77,4.59385048]
[1735292986574,2.5826,193.82,193.76,2.5834]
[1735292986774,2.5826,193.82,193.77,4.59352403]
[1735292986968,2.5826,193.82,193.76,2.5834]
[1735292987272,2.5826,193.82,193.77,4.59317766]
[1735292987473,2.5826,193.82,193.76,2.5834]
[1735292987670,2.5826,193.82,193.77,4.59265321]
[1735292987867,2.5826,193.82,193.76,2.5834]
[1735292988069,2.5826,193.82,193.77,4.59308043]
[1735292988364,2.5826,193.82,193.76,2.5834]
[1735292988569,2.5826,193.82,193.77,4.59375505]
[1735292988766,2.5826,193.82,193.76,2.5834]
[1735292988969,2.5826,193.82,193.77,4.59418751]
[1735292989169,2.5826,193.82,193.76,2.5834]
[1735292989472,2.5826,193.82,193.77,4.59416969]
[1735292989776,2.5829,193.8,193.78,4.59416969]
[1735292990073,2.5829,193.8,193.71,3.2926]
[1735292990274,4.8853,193.86,193.72,4.59242502]
[1735292990474,2.5831,193.79,193.73,7.17622502]
[1735292990674,2.5831,193.79,193.74,4.59242502]
[1735292990878,2.5831,193.79,193.75,4.59242502]
[1735292991072,2.5831,193.79,193.76,4.59242502]
[1735292991372,2.5832,193.78,193.73,2.5838]
[1735292991575,2.5832,193.78,193.74,4.59167198]
[1735292991778,2.5832,193.78,193.73,2.5838]
[1735292991779,2.5832,193.78,193.75,4.59167198]
[1735292991977,2.5832,193.78,193.73,2.5838]
[1735292992275,2.5832,193.78,193.74,4.59372007]
[1735292992473,2.5832,193.78,193.73,2.5838]
[1735292992676,2.5832,193.78,193.74,4.59388704]
[1735292992872,7.18018251,193.85,193.66,1.635]
[1735292993078,0.80844558,193.84,193.67,4.59469951]
[1735292993382,0.80844558,193.84,193.68,4.59469951]
[1735292993677,0.80844558,193.84,193.69,4.59469951]
[1735292993880,0.80844558,193.84,193.7,4.59469951]
[1735292994082,0.80844558,193.84,193.71,4.59469951]
[1735292994270,0.80844558,193.84,193.67,2.5845]
[1735292994475,7.18018251,193.81,193.68,4.59644151]
[1735292994769,4.06,193.8,193.69,4.59644151]
[1735292994977,4.06,193.8,193.7,4.59644151]
[1735292995172,4.06,193.8,193.71,4.59644151]
[1735292995375,4.06,193.8,193.67,2.5845]
[1735292995574,2.5837,193.74,193.68,4.59664213]
[1735292995769,2.5837,193.74,193.69,4.59664213]
[1735292995976,2.5837,193.74,193.7,4.59664213]
[1735292996177,2.5837,193.74,193.67,2.5845]
[1735292996471,2.5837,193.74,193.68,4.59517901]
[1735292996671,2.5837,193.74,193.69,4.59517901]
[1735292996871,2.5837,193.74,193.7,4.59517901]
[1735292997075,2.5837,193.74,193.67,2.5845]
[1735292997278,2.5837,193.74,193.68,4.59392675]
[1735292997576,2.5837,193.74,193.69,4.59392675]
[1735292997882,2.5837,193.74,193.7,4.59392675]
[1735292998084,2.5837,193.74,193.67,2.5845]
[1735292998282,2.5839,193.73,193.68,4.59121565]
[1735292998480,2.5839,193.73,193.69,4.59121565]
[1735292998681,2.5839,193.73,193.67,2.5845]
[1735292998884,2.5839,193.73,193.68,4.59007794]
[1735292999182,2.5839,193.73,193.69,4.59007794]
[1735292999482,2.5839,193.73,193.67,2.5845]
[1735292999682,2.5839,193.73,193.68,4.59035889]
[1735292999881,2.5844,193.7,193.65,1.28800037]
[1735293000083,11.94178251,193.79,193.59,4.04]
[1735293000275,11.94178251,193.79,193.6,4.59074076]
[1735293000589,11.94178251,193.79,193.64,2.585]
[1735293000590,2.5842,193.7,193.64,2.585]
[1735293000774,11.94178251,193.79,193.65,4.59074076]
[1735293001083,0.8087381,193.78,193.62,3.0741]
[1735293001285,0.8087381,193.78,193.63,7.17676407]
[1735293001479,0.8087381,193.78,193.64,4.59166407]
[1735293001679,11.94178251,193.79,193.63,2.5851]
[1735293001884,11.94178251,193.79,193.64,4.58884337]
[1735293001885,2.5843,193.7,193.64,4.58884337]
[1735293002184,2.5843,193.7,193.63,2.5851]
[1735293002378,2.5843,193.7,193.64,4.59070287]
[1735293002579,2.5843,193.7,193.63,2.5851]
[1735293002887,2.5844,193.69,193.64,4.58956289]
[1735293003080,2.5844,193.69,193.62,5.6594]
[1735293003281,2.5844,193.69,193.63,4.59025038]
[1735293003582,4.04,193.73,193.57,1.662]
[1735293003781,4.6615,193.72,193.58,4.59038118]
[1735293004083,2.5856,193.6,193.52,2.5865]
[1735293004275,4.04,193.65,193.51,4.04]
[1735293004475,4.04,193.65,193.52,4.59320169]
[1735293004675,4.04,193.65,193.53,4.59320169]
[1735293004879,4.04,193.65,193.54,4.59320169]
[1735293005083,4.04,193.65,193.5,8.9646]
[1735293005284,4.04,193.65,193.51,4.59275018]
[1735293005482,4.04,193.65,193.52,4.59275018]
[1735293005784,4.5973,193.64,193.53,4.59275018]
[1735293005984,4.5973,193.64,193.5,8.9646]
[1735293006186,4.5973,193.64,193.51,4.59121634]
[1735293006383,4.5973,193.64,193.52,4.59121634]
[1735293006586,4.5973,193.64,193.53,4.5883746]
[1735293006587,2.5856,193.6,193.53,4.5883746]
[1735293006790,4.5973,193.64,193.5,4.9246]
[1735293006984,4.5973,193.64,193.51,7.17659647]
[1735293007286,4.5973,193.64,193.52,4.58979647]
[1735293007477,4.5973,193.64,193.56,2.586]
[1735293007676,32.76073005,193.7,193.5,4.9246]
[1735293007883,5.55834222,193.69,193.51,4.58492497]
[1735293008081,0.80924222,193.68,193.52,4.58492497]
[1735293008287,4.04,193.68,193.53,4.58492497]
[1735293008481,4.04,193.68,193.54,4.58492497]
[1735293008688,4.04,193.68,193.55,4.58492497]
[1735293008986,2.5849,193.65,193.5,4.9246]
[1735293009187,4.04,193.68,193.51,4.58271693]
[1735293009485,4.04,193.68,193.52,4.58271693]
[1735293009787,4.04,193.68,193.53,7.16911693]
[1735293009982,4.04,193.68,193.5,4.9246]
[1735293010185,2.5852,193.63,193.55,2.5862]
[1735293010782,2.5854,193.61,193.53,2.5864]
[1735293010985,4.04,193.66,193.5,4.9246]
[1735293011184,4.04,193.66,193.51,4.58075153]
[1735293011384,4.04,193.66,193.52,4.58075153]
[1735293011581,4.04,193.66,193.5,4.9246]
[1735293011781,4.04,193.66,193.51,4.57825034]
[1735293011986,2.5855,193.61,193.52,7.16475034]
[1735293012185,2.5855,193.61,193.5,4.9246]
[1735293012384,2.5856,193.6,193.53,2.5865]
[1735293012579,4.04,193.66,193.5,4.9246]
[1735293012979,2.5856,193.6,193.51,2.5866]
[1735293013486,2.5864,193.54,193.45,2.5876]
[1735293013790,2.5864,193.54,193.4,4.6108]
[1735293013990,2.5864,193.54,193.41,4.58558451]
[1735293014188,4.04,193.56,193.42,4.58558451]
[1735293014387,4.04,193.56,193.49,2.5869]
[1735293014587,4.04,193.56,193.44,8.62558451]
[1735293014789,4.04,193.56,193.45,4.58558451]
[1735293014989,4.04,193.56,193.46,4.58558451]
[1735293015190,4.04,193.56,193.44,4.04]
[1735293015490,4.04,193.56,193.45,4.58410027]
[1735293015686,4.04,193.56,193.46,4.58410027]
[1735293015883,4.04,193.56,193.44,4.04]
[1735293016081,4.04,193.56,193.45,4.58280491]
[1735293016286,4.04,193.56,193.46,4.58280491]
[1735293016492,4.04,193.56,193.44,4.04]
[1735293016493,2.5863,193.55,193.48,2.5871]
[1735293017282,2.5865,193.53,193.46,2.5874]
[1735293017893,4.04,193.56,193.44,2.5876]
[1735293018494,2.5868,193.51,193.44,2.5876]
[1735293022490,4.04,193.55,193.41,4.04]
[1735293022696,3.1208,193.59,193.42,4.48001728]
[1735293023094,1.6478,193.64,193.42,4.48001728]
[1735293023389,4.04,193.64,193.43,4.48001728]
[1735293023594,2.5853,193.62,193.56,2.5861]
[1735293023799,8.82798251,193.69,193.52,4.04]
[1735293024099,2.5852,193.63,193.57,2.586]
[1735293024393,12.86798251,193.69,193.53,4.873]
[1735293024592,5.6878,193.69,193.53,4.873]
[1735293025310,2.5852,193.64,193.56,2.586]
[1735293025796,2.5851,193.64,193.55,2.5862]
[1735293025996,4.04,193.68,193.55,2.5862]
[1735293026389,2.5851,193.64,193.56,2.5861]
[1735293026792,4.04,193.68,193.53,4.873]
[1735293027197,4.04,193.68,193.52,2.5865]
[1735293027396,4.04,193.68,193.5,2.5868]
[1735293027397,2.5859,193.58,193.5,2.5868]
[1735293027796,4.02,193.61,193.47,4.02]
[1735293027993,4.02,193.6,193.47,4.02]
[1735293028199,2.5862,193.56,193.47,6.6072]
[1735293028796,2.5862,193.56,193.48,2.5872]
[1735293029099,2.5862,193.56,193.47,4.02]
[1735293029100,4.6926,193.59,193.47,4.02]
[1735293029296,2.586,193.57,193.47,4.02]
[1735293029497,2.586,193.57,193.47,8.51600613]
[1735293029702,2.586,193.57,193.49,2.5869]
[1735293030408,2.586,193.57,193.47,4.02]
[1735293030594,2.586,193.57,193.5,2.5869]
[1735293030799,2.5861,193.56,193.47,4.02]
[1735293031095,4.6926,193.59,193.46,2.5873]
[1735293031301,4.6926,193.59,193.43,4.7043]
[1735293032797,4.02,193.58,193.43,4.7043]
[1735293032999,4.02,193.58,193.44,4.52725861]
[1735293033198,4.02,193.58,193.45,4.52725861]
[1735293033403,4.02,193.58,193.46,4.53012607]
[1735293033602,4.02,193.58,193.43,4.7043]
[1735293033805,4.02,193.58,193.46,2.5873]
[1735293033806,2.5864,193.55,193.46,2.5873]
[1735293034422,2.5864,193.54,193.46,2.5873]
[1735293035199,2.5864,193.54,193.47,2.5873]
[1735293037606,2.5865,193.53,193.47,2.5873]
[1735293038110,4.02,193.57,193.47,2.5873]
[1735293039509,4.02,193.57,193.48,4.55979805]
[1735293039806,4.02,193.57,193.46,2.5874]
[1735293040011,4.02,193.57,193.47,4.56085223]
[1735293040213,4.02,193.57,193.48,4.56085223]
[1735293040410,2.5865,193.54,193.46,2.5874]
[1735293040612,2.5865,193.54,193.47,4.56328772]
[1735293040913,2.5865,193.54,193.48,4.56328772]
[1735293041114,2.5865,193.53,193.46,2.5874]
[1735293041315,4.02,193.57,193.47,4.56824563]
[1735293041511,4.02,193.57,193.43,4.7043]
[1735293041717,2.5872,193.48,193.44,4.57269783]
[1735293042016,4.02,193.57,193.43,3.1703]
[1735293042215,4.02,193.57,193.44,4.5719639]
[1735293042515,4.02,193.57,193.45,4.5719639]
[1735293042711,4.02,193.57,193.46,4.5719639]
[1735293042916,2.5866,193.52,193.47,4.5719639]
[1735293043116,2.5866,193.52,193.43,3.1703]
[1735293043314,2.5866,193.52,193.44,4.57479791]
[1735293043517,2.5866,193.52,193.45,4.57479791]
[1735293043716,2.5866,193.52,193.46,4.57479791]
[1735293043916,2.5869,193.5,193.47,4.57479791]
[1735293044218,32.74073005,193.57,193.39,1.85472053]
[1735293044413,32.74073005,193.57,193.4,4.57730822]
[1735293044613,2.5871,193.49,193.42,2.588]
[1735293044819,2.5871,193.49,193.43,4.57730822]
[1735293045018,32.74073005,193.57,193.44,4.57730822]
[1735293045311,32.74073005,193.57,193.39,1.85472053]
[1735293045312,2.5871,193.49,193.45,4.57730822]
[1735293045519,2.5871,193.49,193.39,1.85472053]
[1735293045717,2.5871,193.49,193.4,4.57730575]
[1735293046016,2.5871,193.49,193.41,4.57730575]
[1735293046220,2.5871,193.49,193.42,7.16530575]
[1735293046424,2.5871,193.49,193.43,4.57730575]
[1735293046628,2.5871,193.49,193.44,4.57730575]
[1735293046823,2.5871,193.49,193.45,4.57730575]
[1735293047015,2.5871,193.49,193.42,2.588]
[1735293047220,2.5871,193.49,193.43,4.58708265]
[1735293047516,2.5871,193.49,193.44,4.58708265]
[1735293047719,2.5871,193.49,193.45,4.58708265]
[1735293048019,2.5871,193.49,193.46,4.58708265]
[1735293048224,2.5871,193.49,193.42,2.588]
[1735293048422,2.5871,193.49,193.43,4.59650619]
[1735293048726,2.5871,193.49,193.44,4.59650619]
[1735293048920,2.5871,193.49,193.45,4.59650619]
[1735293049128,2.5871,193.49,193.46,4.59712831]
[1735293049328,2.5871,193.49,193.47,4.59712831]
[1735293049528,2.5871,193.49,193.42,2.588]
[1735293049732,2.5871,193.49,193.43,4.60251619]
[1735293050026,2.5871,193.49,193.44,4.60251619]
[1735293050226,2.5871,193.49,193.45,4.60251619]
[1735293050427,2.5871,193.49,193.46,4.60251619]
[1735293050620,7.18018251,193.55,193.4,2.5881]
[1735293050825,0.80997021,193.54,193.41,4.60725737]
[1735293051021,7.18018251,193.55,193.42,4.60725737]
[1735293051224,2.5877,193.45,193.38,2.5885]
[1735293051420,2.5877,193.45,193.39,4.61169831]
[1735293051625,2.5875,193.46,193.4,4.61169831]
[1735293051928,2.5875,193.46,193.41,4.61169831]
[1735293052125,2.5875,193.46,193.39,2.5883]
[1735293052326,2.5875,193.46,193.4,4.61389137]
[1735293052527,2.5875,193.46,193.41,4.61389137]
[1735293052723,2.5875,193.46,193.39,2.5883]
[1735293052923,2.5875,193.46,193.4,4.61418039]
[1735293053123,2.5875,193.46,193.41,4.61418039]
[1735293053419,2.5876,193.45,193.39,2.5883]
[1735293053620,2.5876,193.45,193.4,4.61540363]
[1735293053827,2.5876,193.45,193.41,4.61540363]
[1735293054028,2.5876,193.45,193.39,2.5883]
[1735293054230,2.5876,193.45,193.4,4.61134592]
[1735293054431,2.5876,193.45,193.39,2.5883]
[1735293054732,2.5876,193.45,193.4,4.61176447]
[1735293054925,2.5876,193.45,193.39,2.5883]
[1735293055126,2.5876,193.45,193.4,4.60572888]
[1735293055428,2.5876,193.45,193.39,2.5883]
[1735293055629,2.5876,193.45,193.4,4.60322024]
[1735293055830,4.02,193.48,193.27,4.04]
[1735293056027,4.02,193.48,193.32,4.60333642]
[1735293056230,4.02,193.48,193.33,4.60333642]
[1735293056433,0.81029458,193.47,193.34,4.60333642]
[1735293056628,0.81029458,193.47,193.35,4.60333642]
[1735293056827,0.81029458,193.47,193.32,2.5893]
[1735293057028,0.81029458,193.47,193.33,4.60494909]
[1735293057229,0.81029458,193.47,193.34,4.60494909]
[1735293057432,0.81029458,193.47,193.29,3.0893]
[1735293057433,2.588,193.42,193.29,3.0893]
[1735293057634,2.588,193.42,193.32,4.60274784]
[1735293057835,4.02,193.48,193.33,4.60274784]
[1735293058134,0.81030622,193.47,193.29,3.0893]
[1735293058336,0.81030622,193.47,193.32,4.60141022]
[1735293058532,0.81030622,193.47,193.33,4.60141022]
[1735293058730,2.5884,193.4,193.34,4.60141022]
[1735293058929,2.5884,193.4,193.32,2.5892]
[1735293059132,2.5884,193.4,193.33,4.5941675]
[1735293059329,2.5884,193.4,193.34,4.5941675]
[1735293059530,2.5884,193.4,193.29,3.0893]
[1735293059832,2.5884,193.4,193.33,2.5892]
[1735293060032,4.02,193.43,193.29,3.0893]
[1735293060033,2.5884,193.39,193.29,3.0893]
[1735293060232,2.5884,193.39,193.3,4.59383198]
[1735293060432,2.5884,193.39,193.31,4.59383198]
[1735293060738,4.02,193.43,193.29,3.0893]
[1735293060739,4.02,193.43,193.32,4.593023]
[1735293060931,2.5881,193.42,193.33,4.58899948]
[1735293061132,2.5881,193.42,193.34,4.58899948]
[1735293061334,2.5881,193.42,193.29,3.0893]
[1735293061534,2.5881,193.42,193.33,2.5891]
[1735293061731,2.5881,193.42,193.34,4.59008067]
[1735293061939,2.5881,193.41,193.29,3.0893]
[1735293062139,2.5881,193.41,193.3,4.58652804]
[1735293062338,2.5881,193.41,193.31,4.58652804]
[1735293062537,2.5881,193.41,193.34,2.5889]
[1735293062736,2.5883,193.4,193.34,2.5889]
[1735293063438,28.72073005,193.49,193.29,3.0893]
[1735293063639,4.02,193.48,193.3,4.59249714]
[1735293063841,28.72073005,193.49,193.31,4.59249714]
[1735293064038,28.72073005,193.49,193.32,6.20169714]
[1735293064243,28.72073005,193.49,193.33,4.59249714]
[1735293064540,28.72073005,193.49,193.34,8.61249714]
[1735293064741,28.72073005,193.49,193.35,4.59249714]
[1735293064940,28.72073005,193.49,193.36,4.59249714]
[1735293065238,4.02,193.5,193.32,1.6092]
[1735293065436,0.81017848,193.49,193.33,4.60300372]
[1735293065630,0.81017848,193.49,193.32,1.6092]
[1735293065837,0.81017848,193.49,193.33,7.19433327]
[1735293066035,0.81017848,193.49,193.32,1.6092]
[1735293066235,0.81017848,193.49,193.34,2.589]
[1735293066434,41.55011939,193.48,193.34,2.589]
[1735293066630,0.81017848,193.47,193.32,1.6092]
[1735293066835,0.81029274,193.46,193.33,2.5891]
[1735293067033,41.55011939,193.48,193.33,2.5891]
[1735293067229,0.81029135,193.47,193.33,2.5891]
[1735293067438,2.5882,193.41,193.33,2.5891]
[1735293067641,4.02,193.43,193.32,1.6092]
[1735293067836,2.5884,193.39,193.32,1.6092]
[1735293068639,4.02,193.43,193.32,1.6092]
[1735293068839,2.5882,193.41,193.33,2.5892]
[1735293070242,2.5883,193.4,193.33,2.5892]
[1735293070543,4.02,193.43,193.29,3.0893]
[1735293070737,4.7245,193.42,193.3,4.60590991]
[1735293071042,4.7245,193.42,193.29,3.0893]
[1735293071342,4.7245,193.42,193.3,4.60831913]
[1735293071645,2.5886,193.38,193.31,2.5894]
[1735293072536,2.5887,193.37,193.31,2.5894]
[1735293072731,4.7245,193.42,193.24,4.02]
[1735293072936,4.7245,193.42,193.25,4.60836057]
[1735293073142,2.589,193.35,193.28,2.5898]
[1735293074040,2.5892,193.34,193.27,2.59]
[1735293074236,4.7245,193.42,193.28,4.60827198]
[1735293074442,4.02,193.41,193.24,4.02]
[1735293074643,4.02,193.41,193.31,2.5894]
[1735293074844,4.02,193.41,193.24,4.02]
[1735293075043,4.02,193.41,193.25,4.61787665]
[1735293075239,4.02,193.41,193.26,4.61787665]
[1735293075439,2.5889,193.35,193.28,2.5897]
[1735293075648,2.5889,193.35,193.29,4.61787665]
[1735293075946,2.5889,193.35,193.24,4.02]
[1735293076141,2.5889,193.35,193.28,2.5897]
[1735293076333,2.5889,193.35,193.29,4.62256507]
[1735293076540,2.5889,193.35,193.28,2.5897]
[1735293076541,2.5891,193.34,193.28,2.5897]
[1735293076741,2.5891,193.34,193.29,4.6218197]
[1735293076942,2.5891,193.34,193.28,2.5897]
[1735293077248,4.02,193.41,193.29,4.6218197]
[1735293077446,4.02,193.41,193.3,4.6218197]
[1735293077647,4.02,193.41,193.24,4.02]
[1735293077843,2.5885,193.38,193.32,2.5893]
[1735293078944,2.5887,193.37,193.3,2.5895]
[1735293079148,4.02,193.41,193.26,1.6287]
[1735293079338,4.02,193.41,193.27,4.61493723]
[1735293079546,4.02,193.41,193.28,4.61493723]
[1735293079845,2.5887,193.37,193.3,2.5894]
[1735293080950,2.5888,193.36,193.3,2.5894]
[1735293081251,4.02,193.41,193.3,2.5894]
[1735293082448,2.5885,193.38,193.31,7.21020015]
[1735293082747,2.5885,193.38,193.31,2.5894]
[1735293083047,4.02,193.41,193.31,2.5894]
[1735293083249,2.5887,193.37,193.31,2.5894]
[1735293084049,4.02,193.41,193.3,2.5895]
[1735293084242,4.02,193.41,193.31,4.61829084]
[1735293084448,4.02,193.41,193.16,27.23453475]
[1735293084645,2.5895,193.31,193.17,9.40801647]
[1735293084848,2.5895,193.31,193.18,8.64151647]
[1735293085049,2.5895,193.31,193.19,4.62151647]
[1735293085350,2.5895,193.31,193.24,2.5903]
[1735293085551,2.5895,193.31,193.25,4.62151647]
[1735293085847,2.5895,193.31,193.26,4.624281]
[1735293086050,2.5896,193.3,193.24,2.5903]
[1735293086243,2.5896,193.3,193.25,4.62168289]
[1735293086548,2.5896,193.3,193.26,4.62168289]
[1735293086742,2.5896,193.3,193.24,2.5903]
[1735293086943,2.5896,193.3,193.25,4.6178049]
[1735293087142,2.5896,193.3,193.19,4.02]
[1735293087347,2.5897,193.29,193.23,2.5905]
[1735293087553,2.5897,193.29,193.24,4.6144766]
[1735293087741,4.02,193.34,193.25,4.6144766]
[1735293087942,2.5898,193.29,193.22,2.5906]
[1735293088151,2.5898,193.29,193.23,4.6138128]
[1735293088347,2.5898,193.29,193.24,4.6138128]
[1735293088552,2.5898,193.29,193.25,4.6138128]
[1735293088756,2.5898,193.29,193.22,2.5906]
[1735293089050,2.5898,193.29,193.23,4.60872348]
[1735293089253,2.5899,193.28,193.24,4.60872348]
[1735293089454,2.5899,193.28,193.22,2.5906]
[1735293089957,2.5902,193.26,193.23,4.60074884]
[1735293090253,2.5902,193.26,193.18,4.0]
[1735293090444,2.5902,193.26,193.19,4.59815504]
[1735293090642,2.5902,193.26,193.2,4.59815504]
[1735293090841,2.5902,193.26,193.21,4.59815504]
[1735293091052,2.5902,193.26,193.22,4.59815504]
[1735293091248,2.5902,193.26,193.23,4.59815504]
[1735293091449,1.654,193.32,193.18,4.0]
[1735293091649,1.654,193.32,193.19,4.59605842]
[1735293091850,1.6023,193.33,193.2,4.59605842]
[1735293092058,2.5893,193.33,193.27,2.5899]
[1735293092249,2.5893,193.33,193.28,4.59174667]
[1735293092449,1.6577,193.35,193.18,4.0]
[1735293092753,30.30393005,193.37,193.19,4.59216959]
[1735293093050,1.6421,193.39,193.32,2.5893]
[1735293093051,2.5888,193.36,193.32,2.5893]
[1735293093252,28.72073005,193.41,193.28,4.0]
[1735293093445,28.72073005,193.41,193.29,3.1256]
[1735293093650,28.72073005,193.41,193.33,2.5891]
[1735293093651,31.30883005,193.41,193.33,2.5891]
[1735293093953,31.30883005,193.41,193.29,4.7717]
[1735293093954,2.5881,193.41,193.34,4.59016288]
[1735293094148,7.2359,193.44,193.35,4.59016288]
[1735293094354,7.2359,193.44,193.29,4.7717]
[1735293094556,7.2359,193.44,193.3,4.59323225]
[1735293094756,7.2359,193.44,193.31,4.59313891]
[1735293094949,7.2359,193.44,193.32,4.59313891]
[1735293095152,7.2359,193.44,193.33,4.59313891]
[1735293095353,2.5884,193.4,193.34,4.59313891]
[1735293095655,7.2359,193.44,193.29,4.7717]
[1735293095852,2.5886,193.37,193.3,7.18933137]
[1735293096053,7.2359,193.44,193.31,4.59983137]
[1735293096355,2.588,193.42,193.35,2.5888]
[1735293096562,3.2359,193.44,193.36,4.59983137]
[1735293096753,3.2359,193.44,193.37,4.59983137]
[1735293096956,2.5878,193.43,193.35,2.5889]
[1735293097153,2.5878,193.43,193.36,4.60080603]
[1735293097358,2.5878,193.43,193.37,4.60080603]
[1735293097553,2.5878,193.43,193.35,2.5889]
[1735293097752,3.2359,193.44,193.35,2.5889]
[1735293097753,2.588,193.42,193.36,4.60296042]
[1735293097956,3.2359,193.44,193.33,2.5891]
[1735293098153,3.2359,193.44,193.34,4.60459603]
[1735293098351,3.2359,193.44,193.35,4.60459603]
[1735293098553,3.2359,193.44,193.33,2.5891]
[1735293098859,2.5881,193.41,193.34,4.60363405]
[1735293099052,3.2359,193.44,193.35,4.60363405]
[1735293099258,3.2359,193.44,193.31,2.5894]
[1735293099459,2.5885,193.39,193.32,4.60634449]
[1735293099655,2.5885,193.39,193.33,4.60634449]
[1735293099854,3.2359,193.44,193.31,2.5894]
[1735293100049,0.81041087,193.43,193.32,4.61066073]
[1735293100258,0.81041087,193.43,193.31,2.5894]
[1735293100460,3.2359,193.44,193.32,4.61128021]
[1735293100660,3.2359,193.44,193.33,4.61128021]
[1735293100661,41.57547035,193.43,193.33,4.61128021]
[1735293100959,41.57547035,193.43,193.31,2.5894]
[1735293101160,2.5885,193.39,193.32,4.61293723]
[1735293101356,4.0,193.42,193.33,7.20213723]
[1735293101561,4.0,193.42,193.34,4.61135392]
[1735293101857,4.0,193.42,193.35,4.61135392]
[1735293102063,4.0,193.42,193.33,2.5892]
[1735293102258,2.5884,193.39,193.34,4.61266251]
[1735293102461,2.5884,193.39,193.31,2.5893]
[1735293102753,4.0,193.42,193.32,4.61384557]
[1735293102951,4.0,193.42,193.29,4.7717]
[1735293103151,4.0,193.42,193.3,4.61511678]
[1735293103355,4.0,193.42,193.31,4.61511678]
[1735293103558,4.0,193.42,193.32,4.61511678]
[1735293103755,2.5884,193.39,193.33,4.61511678]
[1735293103953,2.5884,193.39,193.31,2.5893]
[1735293104160,2.5884,193.39,193.32,4.62129752]
[1735293104351,2.5884,193.39,193.33,4.62129752]
[1735293104553,4.0,193.42,193.34,4.62430712]
[1735293104757,4.0,193.42,193.29,4.7717]
[1735293104758,2.5885,193.38,193.29,4.7717]